[Event "1st Bangalore GM-Open-A 2024"]
[Site "Bangalore"]
[Date "2024.01.21"]
[Round "6.26"]
[White "Saurabh Anand"]
[Black "Mohammad Nubairshah Shaikh"]
[Result "0-1"]
[ECO "D10"]
[WhiteElo "2243"]
[BlackElo "2428"]
[Annotator "ChessBase"]
[PlyCount "122"]
[EventDate "2024.01.20"]
[EventType "swiss"]
[EventCountry "IND"]
[SourceTitle "playchess.com"]
[Source "ChessBase"]
[SourceQuality "1"]
[TimeControl "5400+30"]

1. d4 {[%emt 0:00:09]} d5 {[%emt 0:14:29]} 2. c4 {[%emt 0:00:35]} c6 {[%emt 0:00:02]} 3. Nc3 {[%emt 0:01:36]} dxc4 {[%emt 0:00:04]} 4. e3 {[%emt 0:00:36]} b5 {[%emt 0:00:03]} 5. a4 {[%emt 0:00:31]} b4 {[%emt 0:00:05]} 6. Ne4 {[%emt 0:00:19]} Qd5 {[%emt 0:00:09]} 7. Nd2 {[%emt 0:00:24]} c3 {[%emt 0:00:08]} 8. bxc3 {[%emt 0:00:26]} bxc3 {[%emt 0:00:03]} 9. Nb1 {[%emt 0:00:24]} Qa5 {[%emt 0:00:08]} 10. Qc2 {[%emt 0:00:11]} Na6 {[%emt 0:00:16]} 11. Qxc3 {[%emt 0:00:54]} Nb4 {[%emt 0:00:03]} 12. Bd2 {[%emt 0:00:20]} e6 {[%emt 0:00:03]} 13. Nf3 {[%emt 0:01:14]} Nf6 {[%emt 0:00:10]} 14. Ne5 {[%emt 0:02:12]} Ne4 {[%emt 0:07:16]} 15. Qc1 {[%emt 0:03:13]} Bb7 {[%emt 0:05:51]} 16. Be2 {[%emt 0:02:25]} Be7 {[%emt 0:01:24]} 17. O-O {[%emt 0:02:24]} O-O {[%emt 0:02:05]} 18. f3 {[%emt 0:18:03]} Nf6 {[%emt 0:10:28]} 19. Nd3 {[%emt 0:03:32]} Nxd3 {[%emt 0:02:36]} 20. Bxa5 {[%emt 0:05:26]} Nxc1 {[%emt 0:00:05]} 21. Rxc1 {[%emt 0:00:08]} c5 {[%emt 0:08:55]} 22. Nd2 {[%emt 0:18:38]} cxd4 {[%emt 0:03:23]} 23. exd4 {[%emt 0:00:10]} Rac8 {[%emt 0:13:54]} 24. Rab1 {[%emt 0:02:04]} Rxc1+ {[%emt 0:07:49]} 25. Rxc1 {[%emt 0:00:03]} Nd5 {[%emt 0:00:09]} 26. Ne4 {[%emt 0:01:09]} Rc8 {[%emt 0:00:54]} 27. Rxc8+ {[%emt 0:05:55]} Bxc8 {[%emt 0:00:02]} 28. Kf2 {[%emt 0:00:32]} f5 {[%emt 0:03:08]} 29. Nc3 {[%emt 0:00:53]} Nb4 {[%emt 0:00:18]} 30. Bc7 {[%emt 0:10:00]} Nc6 {[%emt 0:08:23]} 31. d5 {[%emt 0:00:00]} Bc5+ {[%emt 0:00:14]} 32. Kf1 {[%emt 0:00:00]} exd5 {[%emt 0:03:56]} 33. Nxd5 {[%emt 0:00:00]} Be6 {[%emt 0:00:28]} 34. Nf4 {[%emt 0:00:00]} Bb3 {[%emt 0:00:03]} 35. a5 {[%emt 0:00:00]} Kf7 {[%emt 0:03:55]} 36. g4 {[%emt 0:04:52]} Be3 {[%emt 0:02:59]} 37. gxf5 {[%emt 0:02:37]} Nxa5 {[%emt 0:00:27]} 38. Bxa5 {[%emt 0:04:35]} Bxf4 {[%emt 0:00:03]} 39. Kg2 {[%emt 0:00:02]} Bc2 {[%emt 0:01:39]} 40. Ba6 {[%emt 0:04:01]} Bxf5 {[%emt 0:00:11]} 41. Bc3 {[%emt 0:00:08]} Be3 {[%emt 0:00:18]} 42. Kg3 {[%emt 0:00:40]} g6 {[%emt 0:05:19]} 43. Be5 {[%emt 0:04:02]} Ke6 {[%emt 0:00:00]} 44. Bf4 {[%emt 0:01:57]} Bxf4+ {[%emt 0:00:00]} 45. Kxf4 {[%emt 0:00:03]} Kf6 {[%emt 0:00:00]} 46. Kg3 {[%emt 0:01:26]} Ke5 {[%emt 0:00:00]} 47. Kf2 {[%emt 0:00:43]} Kf4 {[%emt 0:00:13]} 48. Ke2 {[%emt 0:00:03]} Be6 {[%emt 0:00:32]} 49. Bb7 {[%emt 0:00:35]} Bc4+ {[%emt 0:01:05]} 50. Kd2 {[%emt 0:00:07]} h5 {[%emt 0:00:19]} 51. Be4 {[%emt 0:00:27]} g5 {[%emt 0:00:06]} 52. Bc6 {[%emt 0:00:26]} h4 {[%emt 0:00:07]} 53. Bb7 {[%emt 0:00:23]} Bb5 {[%emt 0:00:31]} 54. Bd5 {[%emt 0:00:13]} a5 {[%emt 0:00:01]} 55. Bb7 {[%emt 0:00:15]} a4 {[%emt 0:00:26]} 56. Bd5 {[%emt 0:00:03]} Ba6 {[%emt 0:00:43]} 57. Bc6 {[%emt 0:00:18]} a3 {[%emt 0:00:09]} 58. Kc3 {[%emt 0:00:15]} a2 {[%emt 0:00:33]} 59. Kb2 {[%emt 0:00:02]} Bc4 {[%emt 0:00:03]} 60. Ka1 {[%emt 0:00:05]} Be6 {[%emt 0:00:04]} 61. Kb2 {[%emt 0:00:18]} Ke5 {[%emt 0:00:47]} 0-1

[Event "1st Bangalore GM-Open-A 2024"]
[Site "Bangalore"]
[Date "2024.01.21"]
[Round "6.27"]
[White "Roy Chowdhury, Saptarshi"]
[Black "Kaustuv, Kundu"]
[Result "0-1"]
[ECO "B50"]
[WhiteElo "2233"]
[BlackElo "2423"]
[Annotator "RC"]
[PlyCount "82"]
[EventDate "2024.01.20"]
[EventType "swiss"]
[EventCountry "IND"]
[SourceTitle "playchess.com"]
[Source "ChessBase"]
[SourceQuality "1"]
[TimeControl "5400+30"]

1. Nf3 {[%emt 0:00:21]} c5 {[%emt 0:06:18]} 2. e4 {[%emt 0:03:51]} d6 {[%emt 0:00:45]} 3. Bc4 {[%emt 0:00:25]} Nf6 {[%emt 0:00:06]} 4. d3 {[%emt 0:00:04]} Bg4 {[%emt 0:01:35]} 5. e5 {[%emt 0:02:54]} d5 {[%emt 0:01:49]} 6. Bb3 {[%emt 0:02:11]} Ng8 {[%emt 0:02:53]} 7. h3 {[%emt 0:01:04]} Bf5 {[%emt 0:06:36]} 8. O-O {[%emt 0:08:26]} Nc6 {[%emt 0:01:26]} 9. Re1 {[%emt 0:01:30]} e6 {[%emt 0:01:16]} 10. Ba4 {[%emt 0:01:49]} Rc8 {[%emt 0:00:13]} 11. Nbd2 {[%emt 0:01:26]} h6 {[%emt 0:01:08]} 12. Nf1 {[%emt 0:01:12]} Nge7 {[%emt 0:04:18]} 13. d4 {[%emt 0:01:20]} Qa5 {[%emt 0:07:13]} 14. c3 {[%emt 0:08:54]} b5 {[%emt 0:07:58]} 15. Bb3 {[%emt 0:00:12]} cxd4 {[%emt 0:00:57]} 16. Nxd4 {[%emt 0:03:06]} Nxd4 {[%emt 0:00:14]} 17. Qxd4 {[%emt 0:00:05]} Nc6 {[%emt 0:00:25]} 18. Qd1 {[%emt 0:02:33]} Qc7 {[%emt 0:04:18]} 19. Bf4 {[%emt 0:01:33]} g5 {[%emt 0:01:49]} 20. Bg3 {[%emt 0:01:00]} Bg7 {[%emt 0:00:53]} 21. Ne3 {[%emt 0:10:36]} Be4 {[%emt 0:03:11]} 22. a4 {[%emt 0:04:14]} bxa4 {[%emt 0:05:52]} 23. Bxa4 {[%emt 0:03:23]} O-O {[%emt 0:00:29]} 24. Bxc6 {[%emt 0:01:00]} Qxc6 {[%emt 0:00:05]} 25. Ng4 {[%emt 0:02:10]} Rb8 {[%emt 0:06:17]} 26. Qd2 {[%emt 0:06:36]} d4 {[%emt 0:06:20]} 27. f3 {[%emt 0:00:45]} dxc3 {[%emt 0:00:50]} 28. bxc3 {[%emt 0:00:12]} Bg6 {[%emt 0:02:15]} 29. h4 {[%emt 0:02:09]} Rfd8 {[%emt 0:02:08]} 30. Qc1 {[%emt 0:00:25]} Rd3 {[%emt 0:06:37]} 31. hxg5 {[%emt 0:01:04]} Rxc3 {[%emt 0:00:31]} 32. Qf4 {[%emt 0:00:27]} Rc4 {[%emt 0:02:07]} 33. Qe3 {[%emt 0:02:50]} Rb2 {[%emt 0:02:52]} 34. Nf6+ {[%emt 0:04:19]} Bxf6 {[%emt 0:00:24]} 35. gxf6 {[%emt 0:00:37]} Rcc2 {[%emt 0:00:21]} 36. Rac1 {[%emt 0:07:26]} Rxg2+ {[%emt 0:01:57]} 37. Kh1 {[%emt 0:00:05]} Rgc2 {[%emt 0:00:10]} 38. Rcd1 {[%emt 0:00:06]} Rb8 {[%emt 0:01:46]} 39. Rf1 {[%emt 0:00:21]} Kh7 {[%emt 0:00:29]} 40. Rd4 {[%emt 0:04:58]} Rc3 {[%emt 0:06:24]} 41. Qf4 {[%emt 0:00:30]} Rb1 {[%emt 0:01:39]} 0-1

[Event "1st Bangalore GM-Open-A 2024"]
[Site "Bangalore"]
[Date "2024.01.21"]
[Round "6.28"]
[White "Frayna, Janelle Mae"]
[Black "Adireddy Arjun"]
[Result "1/2-1/2"]
[ECO "D78"]
[WhiteElo "2197"]
[BlackElo "2415"]
[Annotator "ChessBase"]
[PlyCount "140"]
[EventDate "2024.01.20"]
[EventType "swiss"]
[EventCountry "IND"]
[SourceTitle "playchess.com"]
[Source "ChessBase"]
[SourceQuality "1"]
[TimeControl "5400+30"]

1. Nf3 {[%emt 0:00:02]} d5 {[%emt 0:03:45]} 2. c4 {[%emt 0:00:06]} c6 {[%emt 0:00:56]} 3. g3 {[%emt 0:00:43]} Nf6 {[%emt 0:00:45]} 4. Bg2 {[%emt 0:00:19]} g6 {[%emt 0:10:29]} 5. Qa4 {[%emt 0:06:06]} Nbd7 {[%emt 0:01:28]} 6. cxd5 {[%emt 0:04:24]} cxd5 {[%emt 0:05:44]} 7. O-O {[%emt 0:03:56]} Bg7 {[%emt 0:00:22]} 8. d4 {[%emt 0:00:36]} O-O {[%emt 0:00:17]} 9. Nc3 {[%emt 0:00:16]} Nb6 {[%emt 0:05:37]} 10. Qb3 {[%emt 0:00:48]} Ne4 {[%emt 0:06:41]} 11. Bf4 {[%emt 0:01:10]} Nxc3 {[%emt 0:10:39]} 12. Qxc3 {[%emt 0:00:32]} Bg4 {[%emt 0:09:23]} 13. Rac1 {[%emt 0:09:49]} Rc8 {[%emt 0:00:48]} 14. Qd3 {[%emt 0:08:08]} Qd7 {[%emt 0:05:32]} 15. Ne5 {[%emt 0:06:04]} Bxe5 {[%emt 0:00:25]} 16. Bxe5 {[%emt 0:02:35]} Nc4 {[%emt 0:00:16]} 17. b3 {[%emt 0:00:36]} Bf5 {[%emt 0:02:20]} 18. Qd1 {[%emt 0:01:33]} Nxe5 {[%emt 0:00:46]} 19. dxe5 {[%emt 0:00:28]} Rxc1 {[%emt 0:08:57]} 20. Qxc1 {[%emt 0:00:05]} Rc8 {[%emt 0:01:03]} 21. Qa3 {[%emt 0:00:22]} b6 {[%emt 0:02:49]} 22. Rc1 {[%emt 0:00:39]} Rxc1+ {[%emt 0:05:09]} 23. Qxc1 {[%emt 0:00:05]} d4 {[%emt 0:00:31]} 24. Qc6 {[%emt 0:08:22]} Qxc6 {[%emt 0:11:54]} 25. Bxc6 {[%emt 0:00:06]} Kg7 {[%emt 0:00:08]} 26. Kf1 {[%emt 0:03:36]} f6 {[%emt 0:00:19]} 27. exf6+ {[%emt 0:01:15]} Kxf6 {[%emt 0:00:03]} 28. Ke1 {[%emt 0:03:09]} Ke5 {[%emt 0:02:56]} 29. b4 {[%emt 0:06:16]} a5 {[%emt 0:04:01]} 30. a3 {[%emt 0:03:28]} Kd6 {[%emt 0:00:49]} 31. Ba4 {[%emt 0:03:17]} e5 {[%emt 0:00:35]} 32. h4 {[%emt 0:06:55]} e4 {[%emt 0:00:28]} 33. Kd2 {[%emt 0:00:48]} Ke5 {[%emt 0:00:27]} 34. Bc6 {[%emt 0:00:49]} h6 {[%emt 0:00:34]} 35. Ba4 {[%emt 0:03:41]} Be6 {[%emt 0:00:30]} 36. Bc6 {[%emt 0:01:06]} Bd5 {[%emt 0:00:31]} 37. Be8 {[%emt 0:00:16]} g5 {[%emt 0:00:17]} 38. hxg5 {[%emt 0:00:04]} hxg5 {[%emt 0:00:06]} 39. Ba4 {[%emt 0:01:06]} Kd6 {[%emt 0:00:55]} 40. Bc2 {[%emt 0:00:42]} Ke5 {[%emt 0:00:41]} 41. Ba4 {[%emt 0:00:03]} Be6 {[%emt 0:00:25]} 42. Bc6 {[%emt 0:00:21]} Bc4 {[%emt 0:00:12]} 43. Bb7 {[%emt 0:01:53]} Bb5 {[%emt 0:00:50]} 44. Ba8 {[%emt 0:00:08]} Bd7 {[%emt 0:00:32]} 45. Bb7 {[%emt 0:00:09]} a4 {[%emt 0:00:31]} 46. Ba8 {[%emt 0:01:44]} b5 {[%emt 0:00:23]} 47. Bb7 {[%emt 0:00:08]} Be8 {[%emt 0:00:06]} 48. Ba8 {[%emt 0:00:24]} Bd7 {[%emt 0:00:58]} 49. Bb7 {[%emt 0:00:03]} Be6 {[%emt 0:00:09]} 50. Bc6 {[%emt 0:00:19]} Bc4 {[%emt 0:00:06]} 51. Be8 {[%emt 0:02:24]} Kd6 {[%emt 0:00:25]} 52. Bg6 {[%emt 0:00:58]} Bd5 {[%emt 0:00:06]} 53. Be8 {[%emt 0:01:25]} Bc6 {[%emt 0:00:04]} 54. Bg6 {[%emt 0:01:16]} Ke6 {[%emt 0:00:25]} 55. Bh7 {[%emt 0:00:45]} Ke5 {[%emt 0:01:44]} 56. Bg6 {[%emt 0:01:15]} Kf6 {[%emt 0:00:04]} 57. Bh7 {[%emt 0:01:00]} Bd5 {[%emt 0:00:45]} 58. Kc2 {[%emt 0:00:12]} Ke5 {[%emt 0:01:16]} 59. Bg6 {[%emt 0:01:00]} Bc6 {[%emt 0:00:22]} 60. Kd2 {[%emt 0:00:31]} Bd7 {[%emt 0:00:26]} 61. Bf7 {[%emt 0:00:17]} Kd6 {[%emt 0:00:33]} 62. Kc2 {[%emt 0:00:46]} Bc6 {[%emt 0:00:39]} 63. Kd2 {[%emt 0:00:15]} Ke5 {[%emt 0:00:23]} 64. Bg6 {[%emt 0:00:35]} Kf6 {[%emt 0:00:38]} 65. Bh7 {[%emt 0:00:08]} Bd5 {[%emt 0:00:27]} 66. Kc2 {[%emt 0:00:04]} g4 {[%emt 0:00:31]} 67. Kd2 {[%emt 0:00:22]} Kg5 {[%emt 0:00:29]} 68. Kc2 {[%emt 0:00:24]} Kf6 {[%emt 0:00:19]} 69. Kd2 {[%emt 0:00:03]} Kg5 {[%emt 0:00:29]} 70. Kc2 {[%emt 0:00:03]} Kf6 {[%emt 0:00:06]} 1/2-1/2

[Event "1st Bangalore GM-Open-A 2024"]
[Site "Bangalore"]
[Date "2024.01.21"]
[Round "6.29"]
[White "Vishnu Prasanna. V"]
[Black "Rajarishi Karthi"]
[Result "1/2-1/2"]
[ECO "E17"]
[WhiteElo "2413"]
[BlackElo "2183"]
[Annotator "RC"]
[PlyCount "138"]
[EventDate "2024.01.20"]
[EventType "swiss"]
[EventCountry "IND"]
[SourceTitle "playchess.com"]
[Source "ChessBase"]
[SourceQuality "1"]
[TimeControl "5400+30"]

1. d4 {[%emt 0:00:04]} d5 {[%emt 0:20:32]} 2. c4 {[%emt 0:00:06]} e6 {[%emt 0:00:03]} 3. Nf3 {[%emt 0:00:28]} Nf6 {[%emt 0:00:05]} 4. g3 {[%emt 0:00:30]} Be7 {[%emt 0:00:07]} 5. Bg2 {[%emt 0:00:34]} O-O {[%emt 0:00:10]} 6. Nbd2 {[%emt 0:00:24]} b6 {[%emt 0:02:49]} 7. O-O {[%emt 0:00:36]} Bb7 {[%emt 0:00:42]} 8. b3 {[%emt 0:01:12]} Nbd7 {[%emt 0:01:52]} 9. Bb2 {[%emt 0:00:16]} c5 {[%emt 0:00:49]} 10. Ne1 {[%emt 0:00:12]} Rc8 {[%emt 0:00:35]} 11. Nd3 {[%emt 0:03:55]} Qc7 {[%emt 0:01:13]} 12. cxd5 {[%emt 0:01:07]} Bxd5 {[%emt 0:00:23]} 13. e4 {[%emt 0:00:51]} Bb7 {[%emt 0:00:48]} 14. Rc1 {[%emt 0:00:09]} Qb8 {[%emt 0:01:12]} 15. dxc5 {[%emt 0:03:57]} Nxc5 {[%emt 0:04:21]} 16. Nxc5 {[%emt 0:01:06]} Rxc5 {[%emt 0:00:07]} 17. Rxc5 {[%emt 0:00:06]} Bxc5 {[%emt 0:00:06]} 18. Bxf6 {[%emt 0:04:05]} gxf6 {[%emt 0:00:59]} 19. Nc4 {[%emt 0:01:28]} Ba6 {[%emt 0:01:13]} 20. Qg4+ {[%emt 0:01:32]} Kh8 {[%emt 0:00:20]} 21. Qh4 {[%emt 0:00:05]} Kg7 {[%emt 0:00:40]} 22. e5 {[%emt 0:01:54]} Qd8 {[%emt 0:01:49]} 23. Qg4+ {[%emt 0:06:25]} Kh8 {[%emt 0:00:23]} 24. Rd1 {[%emt 0:00:06]} Qe7 {[%emt 0:03:34]} 25. Qf4 {[%emt 0:01:39]} Kg7 {[%emt 0:12:12]} 26. Bc6 {[%emt 0:05:06]} fxe5 {[%emt 0:11:44]} 27. Nxe5 {[%emt 0:00:43]} Bc8 {[%emt 0:01:10]} 28. b4 {[%emt 0:13:22]} Bd6 {[%emt 0:05:50]} 29. Be4 {[%emt 0:19:15]} Bxe5 {[%emt 0:04:10]} 30. Qxe5+ {[%emt 0:00:04]} f6 {[%emt 0:00:19]} 31. Qd4 {[%emt 0:05:56]} e5 {[%emt 0:01:15]} 32. Qd2 {[%emt 0:00:24]} Bg4 {[%emt 0:00:31]} 33. Re1 {[%emt 0:01:48]} Rd8 {[%emt 0:00:17]} 34. Qc3 {[%emt 0:00:04]} Qd6 {[%emt 0:01:50]} 35. a3 {[%emt 0:06:59]} Rc8 {[%emt 0:04:05]} 36. Qe3 {[%emt 0:01:16]} a5 {[%emt 0:00:39]} 37. Bf3 {[%emt 0:02:30]} Bxf3 {[%emt 0:00:18]} 38. Qxf3 {[%emt 0:00:04]} Rc4 {[%emt 0:01:29]} 39. bxa5 {[%emt 0:01:16]} bxa5 {[%emt 0:00:08]} 40. Rb1 {[%emt 0:00:12]} Rc7 {[%emt 0:01:17]} 41. h4 {[%emt 0:00:17]} Qe6 {[%emt 0:04:12]} 42. Qa8 {[%emt 0:02:19]} Qa2 {[%emt 0:09:32]} 43. Rb8 {[%emt 0:04:23]} a4 {[%emt 0:00:15]} 44. Kg2 {[%emt 0:03:47]} Qc4 {[%emt 0:01:34]} 45. Rb4 {[%emt 0:03:28]} Qc6+ {[%emt 0:00:55]} 46. Qxc6 {[%emt 0:00:05]} Rxc6 {[%emt 0:00:02]} 47. Rxa4 {[%emt 0:00:04]} Rc3 {[%emt 0:00:04]} 48. Ra8 {[%emt 0:01:24]} Kg6 {[%emt 0:00:56]} 49. a4 {[%emt 0:00:10]} e4 {[%emt 0:00:39]} 50. a5 {[%emt 0:01:51]} Rc2 {[%emt 0:00:11]} 51. a6 {[%emt 0:02:11]} Ra2 {[%emt 0:00:12]} 52. Kf1 {[%emt 0:00:52]} Kf5 {[%emt 0:02:03]} 53. a7 {[%emt 0:00:08]} Ra1+ {[%emt 0:01:00]} 54. Ke2 {[%emt 0:00:08]} Ra2+ {[%emt 0:00:10]} 55. Ke3 {[%emt 0:00:09]} Ra3+ {[%emt 0:00:04]} 56. Kd4 {[%emt 0:00:25]} Ra4+ {[%emt 0:00:10]} 57. Kc5 {[%emt 0:00:08]} Ra2 {[%emt 0:00:05]} 58. Kd6 {[%emt 0:00:51]} h5 {[%emt 0:00:25]} 59. Ke7 {[%emt 0:00:52]} Ra6 {[%emt 0:01:02]} 60. Kf7 {[%emt 0:00:53]} Ra3 {[%emt 0:00:58]} 61. g4+ {[%emt 0:02:23]} hxg4 {[%emt 0:00:20]} 62. h5 {[%emt 0:00:03]} e3 {[%emt 0:00:46]} 63. fxe3 {[%emt 0:00:19]} g3 {[%emt 0:00:08]} 64. e4+ {[%emt 0:00:19]} Kf4 {[%emt 0:00:18]} 65. h6 {[%emt 0:00:50]} g2 {[%emt 0:00:08]} 66. Rg8 {[%emt 0:01:02]} Rxa7+ {[%emt 0:00:08]} 67. Kxf6 {[%emt 0:00:04]} Ra6+ {[%emt 0:00:04]} 68. Kf7 {[%emt 0:00:03]} Rxh6 {[%emt 0:00:08]} 69. Rxg2 {[%emt 0:00:02]} Kxe4 {[%emt 0:00:37]} 1/2-1/2

[Event "1st Bangalore GM-Open-A 2024"]
[Site "Bangalore"]
[Date "2024.01.21"]
[Round "6.30"]
[White "Subhayan Kundu"]
[Black "Alekhya Mukhopadhyay"]
[Result "1-0"]
[ECO "B41"]
[WhiteElo "2385"]
[BlackElo "2184"]
[Annotator "RC"]
[PlyCount "189"]
[EventDate "2024.01.20"]
[EventType "swiss"]
[EventCountry "IND"]
[SourceTitle "playchess.com"]
[Source "ChessBase"]
[SourceQuality "1"]
[TimeControl "5400+30"]

1. e4 {[%emt 0:06:26]} c5 {[%emt 0:00:09]} 2. Nf3 {[%emt 0:00:11]} e6 {[%emt 0:00:07]} 3. d4 {[%emt 0:00:11]} cxd4 {[%emt 0:00:07]} 4. Nxd4 {[%emt 0:00:05]} a6 {[%emt 0:00:07]} 5. c4 {[%emt 0:00:16]} Nf6 {[%emt 0:00:13]} 6. Nc3 {[%emt 0:00:04]} Bb4 {[%emt 0:00:09]} 7. Qd3 {[%emt 0:00:08]} Qc7 {[%emt 0:01:36]} 8. a3 {[%emt 0:00:10]} Bxc3+ {[%emt 0:00:44]} 9. Qxc3 {[%emt 0:00:17]} O-O {[%emt 0:00:58]} 10. f3 {[%emt 0:03:39]} d6 {[%emt 0:02:15]} 11. Be2 {[%emt 0:02:14]} e5 {[%emt 0:00:52]} 12. Nc2 {[%emt 0:01:55]} Be6 {[%emt 0:00:22]} 13. Bg5 {[%emt 0:01:09]} Nbd7 {[%emt 0:00:29]} 14. Rc1 {[%emt 0:05:16]} h6 {[%emt 0:02:23]} 15. Bd2 {[%emt 0:04:51]} Rfc8 {[%emt 0:04:01]} 16. Ne3 {[%emt 0:01:05]} a5 {[%emt 0:04:42]} 17. O-O {[%emt 0:09:24]} a4 {[%emt 0:01:54]} 18. Rc2 {[%emt 0:07:18]} Nb8 {[%emt 0:09:34]} 19. Rd1 {[%emt 0:06:03]} Nc6 {[%emt 0:07:24]} 20. Be1 {[%emt 0:01:35]} Nd4 {[%emt 0:02:18]} 21. Rxd4 {[%emt 0:00:49]} exd4 {[%emt 0:00:20]} 22. Qxd4 {[%emt 0:00:02]} Nd7 {[%emt 0:11:01]} 23. Bg3 {[%emt 0:08:22]} Ra6 {[%emt 0:19:27]} 24. Rd2 {[%emt 0:11:54]} Ne5 {[%emt 0:07:55]} 25. c5 {[%emt 0:01:10]} Qxc5 {[%emt 0:00:51]} 26. Bxa6 {[%emt 0:00:04]} bxa6 {[%emt 0:00:44]} 27. Qxc5 {[%emt 0:04:12]} Rxc5 {[%emt 0:00:05]} 28. Rxd6 {[%emt 0:00:18]} Nc4 {[%emt 0:06:08]} 29. Nxc4 {[%emt 0:03:56]} Bxc4 {[%emt 0:00:10]} 30. Bf2 {[%emt 0:00:52]} Rc7 {[%emt 0:01:21]} 31. Bb6 {[%emt 0:00:03]} Rc8 {[%emt 0:00:20]} 32. Bd4 {[%emt 0:00:21]} Bb5 {[%emt 0:01:07]} 33. Bc3 {[%emt 0:00:06]} Rc7 {[%emt 0:02:09]} 34. Rd8+ {[%emt 0:00:11]} Kh7 {[%emt 0:00:05]} 35. Kf2 {[%emt 0:00:00]} Rd7 {[%emt 0:02:01]} 36. Rc8 {[%emt 0:00:04]} Kg6 {[%emt 0:00:22]} 37. h4 {[%emt 0:00:14]} f6 {[%emt 0:02:07]} 38. Ke3 {[%emt 0:01:38]} Rd3+ {[%emt 0:01:41]} 39. Kf4 {[%emt 0:00:02]} Rd7 {[%emt 0:00:34]} 40. Rc5 {[%emt 0:00:13]} h5 {[%emt 0:01:25]} 41. e5 {[%emt 0:04:21]} fxe5+ {[%emt 0:00:43]} 42. Rxe5 {[%emt 0:00:04]} Rf7+ {[%emt 0:01:54]} 43. Ke4 {[%emt 0:00:21]} Rd7 {[%emt 0:00:29]} 44. Bd4 {[%emt 0:03:23]} Bc6+ {[%emt 0:00:42]} 45. Ke3 {[%emt 0:00:58]} Bb5 {[%emt 0:00:05]} 46. Bc3 {[%emt 0:00:35]} Rd3+ {[%emt 0:00:37]} 47. Kf4 {[%emt 0:01:50]} Rd7 {[%emt 0:00:09]} 48. Kg3 {[%emt 0:00:18]} Kh6 {[%emt 0:01:06]} 49. Bb4 {[%emt 0:00:03]} Rd3 {[%emt 0:03:57]} 50. Bc5 {[%emt 0:01:36]} Kg6 {[%emt 0:02:25]} 51. Be3 {[%emt 0:00:19]} Kf6 {[%emt 0:00:33]} 52. Re4 {[%emt 0:01:27]} Rd5 {[%emt 0:01:22]} 53. Bg5+ {[%emt 0:00:34]} Kf7 {[%emt 0:00:24]} 54. Re7+ {[%emt 0:00:09]} Kf8 {[%emt 0:00:07]} 55. Rc7 {[%emt 0:00:46]} Rd7 {[%emt 0:00:16]} 56. Rc5 {[%emt 0:00:07]} Kf7 {[%emt 0:00:20]} 57. Bf4 {[%emt 0:00:29]} g6 {[%emt 0:00:14]} 58. Be5 {[%emt 0:01:11]} Ke6 {[%emt 0:00:23]} 59. Bc3 {[%emt 0:00:11]} Rd5 {[%emt 0:00:19]} 60. Rc7 {[%emt 0:00:14]} Rd7 {[%emt 0:00:06]} 61. Rc8 {[%emt 0:00:01]} Rf7 {[%emt 0:00:45]} 62. Kf2 {[%emt 0:00:44]} Rd7 {[%emt 0:01:03]} 63. Ke3 {[%emt 0:00:14]} Rd3+ {[%emt 0:00:35]} 64. Kf4 {[%emt 0:00:10]} Rd5 {[%emt 0:00:28]} 65. Rg8 {[%emt 0:02:01]} Bd3 {[%emt 0:00:27]} 66. Ke3 {[%emt 0:01:14]} Kf7 {[%emt 0:01:13]} 67. Rg7+ {[%emt 0:00:09]} Kf8 {[%emt 0:00:07]} 68. Rb7 {[%emt 0:01:50]} Bb5 {[%emt 0:00:14]} 69. Ke4 {[%emt 0:01:19]} Rd7 {[%emt 0:00:42]} 70. Rb6 {[%emt 0:00:37]} Bd3+ {[%emt 0:02:28]} 71. Ke3 {[%emt 0:00:06]} Kf7 {[%emt 0:00:50]} 72. Bd4 {[%emt 0:00:43]} Bf5 {[%emt 0:00:35]} 73. Rxa6 {[%emt 0:00:26]} Bc2 {[%emt 0:00:24]} 74. Rc6 {[%emt 0:00:40]} Bb1 {[%emt 0:00:21]} 75. Rc4 {[%emt 0:00:36]} Ke6 {[%emt 0:00:45]} 76. Rxa4 {[%emt 0:00:25]} Kd5 {[%emt 0:00:05]} 77. Ra5+ {[%emt 0:00:24]} Kc4 {[%emt 0:00:02]} 78. Rc5+ {[%emt 0:00:12]} Kb3 {[%emt 0:00:01]} 79. Bc3 {[%emt 0:00:37]} Re7+ {[%emt 0:00:10]} 80. Kf4 {[%emt 0:00:15]} Re2 {[%emt 0:00:18]} 81. g3 {[%emt 0:00:22]} Bd3 {[%emt 0:00:07]} 82. Rd5 {[%emt 0:00:11]} Bb1 {[%emt 0:00:38]} 83. Rd4 {[%emt 0:00:13]} Bf5 {[%emt 0:00:16]} 84. a4 {[%emt 0:00:23]} Re6 {[%emt 0:00:27]} 85. a5 {[%emt 0:00:16]} Re8 {[%emt 0:00:31]} 86. Rb4+ {[%emt 0:00:27]} Kc2 {[%emt 0:00:24]} 87. a6 {[%emt 0:00:02]} Rf8 {[%emt 0:00:05]} 88. Kg5 {[%emt 0:00:20]} Bd3 {[%emt 0:00:28]} 89. a7 {[%emt 0:00:09]} Rf5+ {[%emt 0:00:03]} 90. Kh6 {[%emt 0:00:10]} Ra5 {[%emt 0:00:03]} 91. Bd4 {[%emt 0:00:11]} Be2 {[%emt 0:00:14]} 92. Bb6 {[%emt 0:00:16]} Ra6 {[%emt 0:00:26]} 93. Rf4 {[%emt 0:00:14]} Bb5 {[%emt 0:00:22]} 94. Rf8 {[%emt 0:00:06]} Bc6 {[%emt 0:00:11]} 95. Rc8 {[%emt 0:00:03]} 1-0